[Event "Early-Titled-Tuesday-Blitz-March-05-2024"]
[Site "Chess.com"]
[Date "2024.03.05"]
[Round "6"]
[White "Gryffindorac8"]
[Black "WindWhistler11"]
[Result "0-1"]
[WhiteElo "2387"]
[BlackElo "2528"]
[TimeControl "180+1"]
[EndTime "9:11:02 PST"]
[Termination "WindWhistler11 won by resignation"]

1. d4 {[%clk 0:03:00.9]} 1... Nf6 {[%clk 0:02:57.8]} 2. c4 {[%clk 0:02:55.7]}
2... e6 {[%clk 0:02:57.4]} 3. Nf3 {[%clk 0:02:52.3]} 3... c5 {[%clk 0:02:57.9]}
4. d5 {[%clk 0:02:51.7]} 4... exd5 {[%clk 0:02:58.2]} 5. cxd5 {[%clk 0:02:52.6]}
5... Bd6 {[%clk 0:02:58.6]} 6. Nc3 {[%clk 0:02:49.3]} 6... O-O {[%clk 0:02:59]}
7. Bg5 {[%clk 0:02:39.4]} 7... Re8 {[%clk 0:02:54.1]} 8. e3 {[%clk 0:02:37.9]}
8... Bc7 {[%clk 0:02:46.2]} 9. Be2 {[%clk 0:02:33]} 9... d6 {[%clk 0:02:45.6]}
10. O-O {[%clk 0:02:30.1]} 10... Nbd7 {[%clk 0:02:44.4]} 11. Nd2 {[%clk
0:02:19.9]} 11... h6 {[%clk 0:02:41.3]} 12. Bh4 {[%clk 0:02:18.2]} 12... a6
{[%clk 0:02:30.9]} 13. a4 {[%clk 0:02:17.8]} 13... Rb8 {[%clk 0:02:29.5]} 14.
Qc2 {[%clk 0:02:09.1]} 14... Ne5 {[%clk 0:01:58.9]} 15. h3 {[%clk 0:02:00.8]}
15... Ng6 {[%clk 0:01:51.8]} 16. Bg3 {[%clk 0:01:58.8]} 16... Ba5 {[%clk
0:01:38.7]} 17. Nc4 {[%clk 0:01:45.8]} 17... Bc7 {[%clk 0:01:38.2]} 18. a5
{[%clk 0:01:42.6]} 18... h5 {[%clk 0:01:38.1]} 19. Rfd1 {[%clk 0:01:36.8]} 19...
h4 {[%clk 0:01:38.5]} 20. Bh2 {[%clk 0:01:35.4]} 20... Ne7 {[%clk 0:01:34.4]}
21. e4 {[%clk 0:01:31]} 21... b5 {[%clk 0:01:25]} 22. axb6 {[%clk 0:01:28.5]}
22... Bxb6 {[%clk 0:01:25.2]} 23. Bxd6 {[%clk 0:01:18.8]} 23... Rb7 {[%clk
0:01:20.7]} 24. e5 {[%clk 0:01:16.9]} 24... Nf5 {[%clk 0:01:15.5]} 25. Nxb6
{[%clk 0:01:08.8]} 25... Rxb6 {[%clk 0:01:13.9]} 26. Bxc5 {[%clk 0:01:06.8]}
26... Nd7 {[%clk 0:01:07.4]} 27. Bxb6 {[%clk 0:01:04.9]} 27... Nxb6 {[%clk
0:01:08.1]} 28. Bxa6 {[%clk 0:01:00.9]} 28... Bxa6 {[%clk 0:01:03.9]} 29. Rxa6
{[%clk 0:00:59]} 29... g6 {[%clk 0:01:02.4]} 30. e6 {[%clk 0:00:53.6]} 30... Nc4
{[%clk 0:00:55.2]} 31. exf7+ {[%clk 0:00:50.8]} 31... Kxf7 {[%clk 0:00:56.1]}
32. Ne4 {[%clk 0:00:46.4]} 32... Ne5 {[%clk 0:00:52.8]} 33. d6 {[%clk
0:00:41.9]} 33... Kg7 {[%clk 0:00:48.9]} 34. d7 {[%clk 0:00:39.8]} 34... Re7
{[%clk 0:00:47.7]} 35. Qc8 {[%clk 0:00:34.1]} 35... Nf7 {[%clk 0:00:34]} 36.
Qxd8 {[%clk 0:00:31.2]} 36... Nxd8 {[%clk 0:00:34.9]} 37. Ra8 {[%clk 0:00:30.3]}
37... Nf7 {[%clk 0:00:34.5]} 38. d8=Q {[%clk 0:00:29.6]} 38... Nxd8 {[%clk
0:00:34.5]} 39. Raxd8 {[%clk 0:00:29.5]} 39... Rxe4 {[%clk 0:00:35.3]} 40. Rb8
{[%clk 0:00:18.5]} 40... Kh6 {[%clk 0:00:33.6]} 41. b4 {[%clk 0:00:18]} 41...
Nd4 {[%clk 0:00:32.4]} 42. Rb1 {[%clk 0:00:17]} 42... Ne2+ {[%clk 0:00:31.6]}
43. Kf1 {[%clk 0:00:15.6]} 43... Nc3 {[%clk 0:00:31.6]} 44. Re1 {[%clk
0:00:14.5]} 44... Rf4 {[%clk 0:00:30.9]} 45. Re3 {[%clk 0:00:09.2]} 45... Ne4
{[%clk 0:00:31]} 46. f3 {[%clk 0:00:09.1]} 46... Nf6 {[%clk 0:00:30.3]} 47. Rb3
{[%clk 0:00:07]} 47... Nh5 {[%clk 0:00:27]} 48. b5 {[%clk 0:00:06.5]} 48... Ng3+
{[%clk 0:00:27.7]} 49. Ke1 {[%clk 0:00:06.5]} 49... Ra4 {[%clk 0:00:23]} 50. b6
{[%clk 0:00:05.5]} 50... Ra1+ {[%clk 0:00:23.9]} 51. Kd2 {[%clk 0:00:05.4]}
51... Ra2+ {[%clk 0:00:24.8]} 52. Kd3 {[%clk 0:00:02.7]} 52... Ne2 {[%clk
0:00:24.8]} 53. b7 {[%clk 0:00:03]} 53... Nc1+ {[%clk 0:00:25.5]} 54. Kc4 {[%clk
0:00:03.2]} 54... Nxb3 {[%clk 0:00:26.2]} 55. Rh8+ {[%clk 0:00:03.3]} 55... Kg5
{[%clk 0:00:26.2]} 56. b8=Q {[%clk 0:00:04.2]} 56... Na5+ {[%clk 0:00:26.7]} 57.
Kd4 {[%clk 0:00:03.8]} 57... Nc6+ {[%clk 0:00:26.8]} 58. Ke3 {[%clk 0:00:02.8]}
58... Nxb8 {[%clk 0:00:27.7]} 59. Rxb8 {[%clk 0:00:03.7]} 59... Rxg2 {[%clk
0:00:28.3]} 60. Rb5+ {[%clk 0:00:04.1]} 60... Kh6 {[%clk 0:00:28.6]} 61. Kf4
{[%clk 0:00:03.4]} 61... Rg3 {[%clk 0:00:29]} 62. Rb8 {[%clk 0:00:02.7]} 62...
Rxh3 {[%clk 0:00:27.8]} 63. Rh8+ {[%clk 0:00:03.3]} 63... Kg7 {[%clk 0:00:28.5]}
64. Rb8 {[%clk 0:00:03.6]} 64... Rg3 {[%clk 0:00:29]} 65. Rb1 {[%clk 0:00:02.5]}
65... Kh6 {[%clk 0:00:29.3]} 66. Rb8 {[%clk 0:00:02.3]} 66... g5+ {[%clk
0:00:29.4]} 67. Ke4 {[%clk 0:00:02.7]} 67... Kg7 {[%clk 0:00:28.5]} 68. Rb7+
{[%clk 0:00:02.8]} 68... Kg6 {[%clk 0:00:29]} 69. Rb6+ {[%clk 0:00:03.2]} 69...
Kh5 {[%clk 0:00:28.9]} 70. Rb8 {[%clk 0:00:03.5]} 70... h3 {[%clk 0:00:27.4]}
71. Rh8+ {[%clk 0:00:03.4]} 71... Kg6 {[%clk 0:00:27.7]} 72. f4 {[%clk
0:00:02.4]} 72... g4 {[%clk 0:00:26.7]} 73. f5+ {[%clk 0:00:02.8]} 73... Kg7
{[%clk 0:00:26.8]} 74. Rh4 {[%clk 0:00:02.5]} 74... Rg2 {[%clk 0:00:26.6]} 75.
Kf4 {[%clk 0:00:02.7]} 75... Kf6 {[%clk 0:00:25.3]} 76. Rh6+ {[%clk 0:00:02.7]}
76... Kf7 {[%clk 0:00:25.8]} 77. Rg6 {[%clk 0:00:02.7]} 77... h2 {[%clk
0:00:25.8]} 78. Rh6 {[%clk 0:00:03.2]} 78... g3 {[%clk 0:00:26.2]} 79. Kg5
{[%clk 0:00:02.9]} 79... Rg1 {[%clk 0:00:23.9]} 80. Rh7+ {[%clk 0:00:03.2]}
80... Kg8 {[%clk 0:00:23]} 81. Kg6 {[%clk 0:00:02.3]} 81... h1=Q {[%clk
0:00:22.6]} 82. Ra7 {[%clk 0:00:02.4]} 82... Qc6+ {[%clk 0:00:20.4]} 83. f6
{[%clk 0:00:02.3]} 83... Rf1 {[%clk 0:00:20.6]} 84. Re7 {[%clk 0:00:01.5]} 84...
Qxf6+ {[%clk 0:00:19.9]} 0-1

[Event "Early-Titled-Tuesday-Blitz-March-05-2024"]
[Site "Chess.com"]
[Date "2024.03.05"]
[Round "6"]
[White "Sofiia_Hryzlova"]
[Black "knightinshiningarmour16"]
[Result "1-0"]
[WhiteElo "2494"]
[BlackElo "2261"]
[TimeControl "180+1"]
[EndTime "9:11:13 PST"]
[Termination "Sofiia_Hryzlova won by checkmate"]

1. e4 {[%clk 0:02:51.1]} 1... c6 {[%clk 0:02:59.1]} 2. Nf3 {[%clk 0:02:47.8]}
2... d5 {[%clk 0:02:59.3]} 3. Nc3 {[%clk 0:02:47.9]} 3... a6 {[%clk 0:02:59.1]}
4. d4 {[%clk 0:02:40.9]} 4... Bg4 {[%clk 0:02:58.8]} 5. h3 {[%clk 0:02:36.6]}
5... Bh5 {[%clk 0:02:58.6]} 6. Bd3 {[%clk 0:02:30.7]} 6... e6 {[%clk 0:02:57.9]}
7. g4 {[%clk 0:02:23.8]} 7... Bg6 {[%clk 0:02:57.8]} 8. Ne5 {[%clk 0:02:24]}
8... dxe4 {[%clk 0:02:48.1]} 9. Nxe4 {[%clk 0:02:24.1]} 9... Qxd4 {[%clk
0:02:42]} 10. Nxg6 {[%clk 0:02:24]} 10... hxg6 {[%clk 0:02:41.7]} 11. c3 {[%clk
0:02:15.5]} 11... Qd8 {[%clk 0:01:57.9]} 12. Bf4 {[%clk 0:02:10.7]} 12... Nf6
{[%clk 0:01:55.4]} 13. Ng5 {[%clk 0:02:01.7]} 13... Nd5 {[%clk 0:01:40.6]} 14.
Bd2 {[%clk 0:01:55.9]} 14... Be7 {[%clk 0:01:37]} 15. f4 {[%clk 0:01:26.7]}
15... Bxg5 {[%clk 0:01:28.4]} 16. fxg5 {[%clk 0:01:26.3]} 16... Nd7 {[%clk
0:01:28.8]} 17. Qe2 {[%clk 0:01:20.6]} 17... Qb6 {[%clk 0:01:12.4]} 18. O-O-O
{[%clk 0:01:07.4]} 18... O-O-O {[%clk 0:01:11.9]} 19. Bc2 {[%clk 0:00:47]} 19...
Nc5 {[%clk 0:00:56]} 20. h4 {[%clk 0:00:39]} 20... Qa5 {[%clk 0:00:37.9]} 21.
Kb1 {[%clk 0:00:32.6]} 21... Qb6 {[%clk 0:00:22.5]} 22. h5 {[%clk 0:00:26.6]}
22... gxh5 {[%clk 0:00:22.3]} 23. gxh5 {[%clk 0:00:26.3]} 23... Ne7 {[%clk
0:00:22.5]} 24. h6 {[%clk 0:00:21.3]} 24... gxh6 {[%clk 0:00:22.3]} 25. gxh6
{[%clk 0:00:20.9]} 25... Rxd2 {[%clk 0:00:22.2]} 26. Rxd2 {[%clk 0:00:19.4]}
26... Nd5 {[%clk 0:00:23.1]} 27. Qf3 {[%clk 0:00:17.7]} 27... a5 {[%clk
0:00:14.9]} 28. h7 {[%clk 0:00:17.8]} 28... Kb8 {[%clk 0:00:14]} 29. Rg2 {[%clk
0:00:17.6]} 29... Ka7 {[%clk 0:00:13.7]} 30. Rg8 {[%clk 0:00:17.6]} 30... Rxh7
{[%clk 0:00:11.9]} 31. Rxh7 {[%clk 0:00:16]} 31... Na4 {[%clk 0:00:09.6]} 32.
Bxa4 {[%clk 0:00:14.9]} 32... Qc5 {[%clk 0:00:06.9]} 33. Rhh8 {[%clk 0:00:12.7]}
33... Qc4 {[%clk 0:00:06.7]} 34. Ra8+ {[%clk 0:00:12.1]} 34... Kb6 {[%clk
0:00:07.2]} 35. Qf2+ {[%clk 0:00:12.3]} 35... Kc7 {[%clk 0:00:07.5]} 36. Rhc8+
{[%clk 0:00:11.2]} 36... Kd6 {[%clk 0:00:07.1]} 37. Rd8+ {[%clk 0:00:11.6]}
37... Ke7 {[%clk 0:00:07]} 38. Re8+ {[%clk 0:00:10.7]} 38... Kd6 {[%clk
0:00:07.4]} 39. Rad8+ {[%clk 0:00:11]} 39... Kc7 {[%clk 0:00:07.8]} 40. Bb3
{[%clk 0:00:11.1]} 40... Qe4+ {[%clk 0:00:07.3]} 41. Qc2 {[%clk 0:00:06.9]}
41... Qe1+ {[%clk 0:00:07.2]} 42. Qd1 {[%clk 0:00:07.1]} 42... Qe4+ {[%clk
0:00:07.2]} 43. Ka1 {[%clk 0:00:07.5]} 43... Ne3 {[%clk 0:00:06]} 44. Qd7+
{[%clk 0:00:06.5]} 44... Kb6 {[%clk 0:00:06.1]} 45. Qd4+ {[%clk 0:00:07.1]}
45... Qxd4 {[%clk 0:00:06.3]} 46. cxd4 {[%clk 0:00:07.6]} 46... Nd5 {[%clk
0:00:06.6]} 47. Rf8 {[%clk 0:00:08]} 47... f5 {[%clk 0:00:05.5]} 48. Rfe8 {[%clk
0:00:07.6]} 48... Nf4 {[%clk 0:00:05.3]} 49. Bxe6 {[%clk 0:00:07.5]} 49... Nd3
{[%clk 0:00:04.8]} 50. Bxf5 {[%clk 0:00:07.7]} 50... Nb4 {[%clk 0:00:04.8]} 51.
Be6 {[%clk 0:00:06.7]} 51... Nc2+ {[%clk 0:00:04.7]} 52. Kb1 {[%clk 0:00:07.2]}
52... Nb4 {[%clk 0:00:05.1]} 53. a3 {[%clk 0:00:06.9]} 53... Nd3 {[%clk
0:00:04.8]} 54. d5 {[%clk 0:00:07.3]} 54... cxd5 {[%clk 0:00:04.8]} 55. Bxd5
{[%clk 0:00:08.2]} 55... Nc5 {[%clk 0:00:04.7]} 56. Re7 {[%clk 0:00:07.3]} 56...
Kb5 {[%clk 0:00:03]} 57. Rb8 {[%clk 0:00:07.2]} 57... b6 {[%clk 0:00:03.3]} 58.
Re6 {[%clk 0:00:07.3]} 58... Na4 {[%clk 0:00:02.3]} 59. b3 {[%clk 0:00:06.6]}
59... Nc3+ {[%clk 0:00:02.3]} 60. Kb2 {[%clk 0:00:06.6]} 60... Nxd5 {[%clk
0:00:03.2]} 61. Re5 {[%clk 0:00:07.2]} 61... Kc6 {[%clk 0:00:03.6]} 62. Rxd5
{[%clk 0:00:07.2]} 62... Kxd5 {[%clk 0:00:03.9]} 63. Rxb6 {[%clk 0:00:07.9]}
63... Kc5 {[%clk 0:00:04.8]} 64. Rb8 {[%clk 0:00:06.9]} 64... Kc6 {[%clk
0:00:05.3]} 65. Kc3 {[%clk 0:00:06.7]} 65... Kc7 {[%clk 0:00:05.9]} 66. Rb5
{[%clk 0:00:07]} 66... a4 {[%clk 0:00:06.3]} 67. bxa4 {[%clk 0:00:06.8]} 67...
Kc8 {[%clk 0:00:07.2]} 68. Kc4 {[%clk 0:00:07.7]} 68... Kc7 {[%clk 0:00:08.1]}
69. a5 {[%clk 0:00:08.5]} 69... Kc6 {[%clk 0:00:09]} 70. a6 {[%clk 0:00:09.4]}
70... Kc7 {[%clk 0:00:09.9]} 71. a7 {[%clk 0:00:10.3]} 71... Kd7 {[%clk
0:00:10.5]} 72. a8=Q {[%clk 0:00:10.5]} 72... Kc7 {[%clk 0:00:11.1]} 73. Rb7+
{[%clk 0:00:10.6]} 73... Kd6 {[%clk 0:00:11.4]} 74. Qa6+ {[%clk 0:00:10.8]}
74... Ke5 {[%clk 0:00:11.7]} 75. Re7+ {[%clk 0:00:11.4]} 75... Kf4 {[%clk
0:00:12.3]} 76. Qf6+ {[%clk 0:00:11.7]} 76... Kg4 {[%clk 0:00:12.2]} 77. Rg7+
{[%clk 0:00:12.6]} 77... Kh5 {[%clk 0:00:12.4]} 78. Qg6+ {[%clk 0:00:13.2]}
78... Kh4 {[%clk 0:00:12.3]} 79. Qg4# {[%clk 0:00:13.8]} 1-0

[Event "Early-Titled-Tuesday-Blitz-March-05-2024"]
[Site "Chess.com"]
[Date "2024.03.05"]
[Round "6"]
[White "IM_ArthurDW08"]
[Black "chess123456s"]
[Result "0-1"]
[WhiteElo "2771"]
[BlackElo "2562"]
[TimeControl "180+1"]
[EndTime "9:11:28 PST"]
[Termination "chess123456s won on time"]

1. e4 {[%clk 0:03:00.9]} 1... e5 {[%clk 0:02:59.6]} 2. Nf3 {[%clk 0:02:59.6]}
2... Nc6 {[%clk 0:02:59.2]} 3. Bb5 {[%clk 0:03:00]} 3... a6 {[%clk 0:02:58.6]}
4. Ba4 {[%clk 0:03:00.3]} 4... Bc5 {[%clk 0:02:59.2]} 5. d3 {[%clk 0:02:59.7]}
5... Nge7 {[%clk 0:02:59.5]} 6. O-O {[%clk 0:02:52.4]} 6... O-O {[%clk
0:02:59.2]} 7. c3 {[%clk 0:02:52.7]} 7... d6 {[%clk 0:02:59.2]} 8. Bb3 {[%clk
0:02:40.4]} 8... h6 {[%clk 0:02:57.4]} 9. Nbd2 {[%clk 0:02:37.6]} 9... Kh8
{[%clk 0:02:51.6]} 10. Re1 {[%clk 0:02:32]} 10... f5 {[%clk 0:02:49.8]} 11. exf5
{[%clk 0:02:32.9]} 11... Bxf5 {[%clk 0:02:45.6]} 12. Ne4 {[%clk 0:02:30.9]}
12... Ba7 {[%clk 0:02:44.2]} 13. Qc2 {[%clk 0:02:18.9]} 13... Ng6 {[%clk
0:02:38.3]} 14. Be3 {[%clk 0:02:15.3]} 14... Bg4 {[%clk 0:02:24.7]} 15. Bxa7
{[%clk 0:01:59.8]} 15... Rxa7 {[%clk 0:02:19.5]} 16. Nfd2 {[%clk 0:01:58.7]}
16... Nh4 {[%clk 0:02:09.1]} 17. f3 {[%clk 0:01:57.7]} 17... Bf5 {[%clk
0:01:57.8]} 18. Nf1 {[%clk 0:01:49.8]} 18... Qe8 {[%clk 0:01:45.4]} 19. Ne3
{[%clk 0:01:47.8]} 19... Bd7 {[%clk 0:01:30.8]} 20. Kh1 {[%clk 0:01:40.7]} 20...
Ra8 {[%clk 0:01:27.5]} 21. Nd5 {[%clk 0:01:39.1]} 21... Rc8 {[%clk 0:01:25.9]}
22. Qf2 {[%clk 0:01:36.2]} 22... Nf5 {[%clk 0:01:20.7]} 23. Ne3 {[%clk 0:01:20]}
23... Qg6 {[%clk 0:01:15.2]} 24. Nxf5 {[%clk 0:01:14.6]} 24... Bxf5 {[%clk
0:01:16.1]} 25. Rad1 {[%clk 0:01:12.2]} 25... Rce8 {[%clk 0:01:12.1]} 26. Bd5
{[%clk 0:01:04.6]} 26... Nd8 {[%clk 0:01:09.2]} 27. Qe3 {[%clk 0:00:59.8]} 27...
c6 {[%clk 0:01:02.6]} 28. Bb3 {[%clk 0:00:59]} 28... Ne6 {[%clk 0:00:51.5]} 29.
g3 {[%clk 0:00:47]} 29... Rd8 {[%clk 0:00:42.6]} 30. h4 {[%clk 0:00:25.9]} 30...
Nc7 {[%clk 0:00:29.3]} 31. g4 {[%clk 0:00:17.8]} 31... Bxe4 {[%clk 0:00:28.7]}
32. Qxe4 {[%clk 0:00:18.7]} 32... Qf6 {[%clk 0:00:24.2]} 33. Kg2 {[%clk
0:00:18.6]} 33... Qxh4 {[%clk 0:00:21.5]} 34. Rh1 {[%clk 0:00:18.6]} 34... Qg5
{[%clk 0:00:19.4]} 35. Rh5 {[%clk 0:00:18.8]} 35... Qf4 {[%clk 0:00:19.4]} 36.
Qxf4 {[%clk 0:00:16.1]} 36... Rxf4 {[%clk 0:00:19.3]} 37. g5 {[%clk 0:00:15.1]}
37... Rf5 {[%clk 0:00:16.8]} 38. Rdh1 {[%clk 0:00:14.9]} 38... d5 {[%clk
0:00:13.9]} 39. gxh6 {[%clk 0:00:14.6]} 39... Rxh5 {[%clk 0:00:13.4]} 40. Rxh5
{[%clk 0:00:15.5]} 40... Re8 {[%clk 0:00:11.9]} 41. Kf2 {[%clk 0:00:12.9]} 41...
Re6 {[%clk 0:00:11.1]} 42. hxg7+ {[%clk 0:00:12.6]} 42... Kxg7 {[%clk 0:00:12]}
43. Bc2 {[%clk 0:00:12.4]} 43... Ne8 {[%clk 0:00:09.2]} 44. d4 {[%clk
0:00:11.3]} 44... exd4 {[%clk 0:00:09]} 45. Rh7+ {[%clk 0:00:09.5]} 45... Kg8
{[%clk 0:00:09.4]} 46. cxd4 {[%clk 0:00:08.4]} 46... Ng7 {[%clk 0:00:08.1]} 47.
Rh4 {[%clk 0:00:06.4]} 47... Kf7 {[%clk 0:00:08]} 48. Rf4+ {[%clk 0:00:06.1]}
48... Ke7 {[%clk 0:00:08.3]} 49. Rg4 {[%clk 0:00:06.7]} 49... Kf7 {[%clk
0:00:08.1]} 50. Bd3 {[%clk 0:00:06.4]} 50... a5 {[%clk 0:00:06.6]} 51. Rf4+
{[%clk 0:00:06.8]} 51... Ke7 {[%clk 0:00:07]} 52. Rh4 {[%clk 0:00:07.7]} 52...
Kf7 {[%clk 0:00:07.4]} 53. Rh8 {[%clk 0:00:08.1]} 53... Re8 {[%clk 0:00:07.5]}
54. Rh6 {[%clk 0:00:08.6]} 54... Re6 {[%clk 0:00:07.6]} 55. Rh1 {[%clk
0:00:09.3]} 55... Rf6 {[%clk 0:00:07.3]} 56. Ke3 {[%clk 0:00:08.7]} 56... Re6+
{[%clk 0:00:07.8]} 57. Kd2 {[%clk 0:00:09.4]} 57... Rf6 {[%clk 0:00:08.5]} 58.
Rh3 {[%clk 0:00:10.1]} 58... Rf4 {[%clk 0:00:08.8]} 59. Ke3 {[%clk 0:00:10.4]}
59... Rf6 {[%clk 0:00:09.4]} 60. Rh8 {[%clk 0:00:09.8]} 60... Re6+ {[%clk
0:00:10.1]} 61. Kf4 {[%clk 0:00:09.9]} 61... Rf6+ {[%clk 0:00:10.2]} 62. Kg3
{[%clk 0:00:08.9]} 62... Ne6 {[%clk 0:00:07.2]} 63. Rh7+ {[%clk 0:00:06.3]}
63... Ng7 {[%clk 0:00:06.8]} 64. f4 {[%clk 0:00:06]} 64... Kg8 {[%clk
0:00:07.1]} 65. Rh1 {[%clk 0:00:05.3]} 65... Re6 {[%clk 0:00:07.7]} 66. Kf3
{[%clk 0:00:04.9]} 66... Kf7 {[%clk 0:00:08.3]} 67. Rg1 {[%clk 0:00:03.9]} 67...
Re7 {[%clk 0:00:07.4]} 68. Rg5 {[%clk 0:00:04.4]} 68... Kf6 {[%clk 0:00:07.4]}
69. Re5 {[%clk 0:00:04.4]} 69... Ne6 {[%clk 0:00:07.1]} 70. Ke3 {[%clk
0:00:04.5]} 70... Rg7 {[%clk 0:00:07.2]} 71. Rh5 {[%clk 0:00:03.9]} 71... Rg3+
{[%clk 0:00:07.3]} 72. Kd2 {[%clk 0:00:03]} 72... Nxd4 {[%clk 0:00:06.8]} 73.
Rh6+ {[%clk 0:00:02.8]} 73... Kg7 {[%clk 0:00:06.8]} 74. Rh7+ {[%clk 0:00:03.7]}
74... Kf6 {[%clk 0:00:07.1]} 75. Rxb7 {[%clk 0:00:04.6]} 75... Nf3+ {[%clk
0:00:07.3]} 76. Ke2 {[%clk 0:00:05.1]} 76... Nd4+ {[%clk 0:00:07.5]} 77. Kd2
{[%clk 0:00:05.7]} 77... Nf3+ {[%clk 0:00:08.1]} 78. Kc1 {[%clk 0:00:06.4]}
78... Nd4 {[%clk 0:00:06.7]} 79. Bh7 {[%clk 0:00:02.6]} 79... Rg2 {[%clk
0:00:05.8]} 80. Rc7 {[%clk 0:00:02.4]} 80... Ne2+ {[%clk 0:00:05.9]} 81. Kd1
{[%clk 0:00:02.6]} 81... Nxf4 {[%clk 0:00:06]} 82. Rxc6+ {[%clk 0:00:03.2]}
82... Ke5 {[%clk 0:00:06.7]} 83. Bc2 {[%clk 0:00:04.1]} 83... Kd4 {[%clk
0:00:06.7]} 84. Ra6 {[%clk 0:00:04.6]} 84... Ke3 {[%clk 0:00:06.8]} 85. Kc1
{[%clk 0:00:05.1]} 85... Rg1+ {[%clk 0:00:06.9]} 86. Bd1 {[%clk 0:00:06]} 86...
Ne2+ {[%clk 0:00:07.4]} 87. Kc2 {[%clk 0:00:06.6]} 87... Nd4+ {[%clk 0:00:08.1]}
88. Kc1 {[%clk 0:00:07.3]} 88... Kd3 {[%clk 0:00:08.8]} 89. Rxa5 {[%clk
0:00:07.8]} 89... Ne2+ {[%clk 0:00:09.3]} 0-1